fUSD/lending_fUSD_20240709
["ID","MTS","AMOUNT","RATE_DAILY","PERIOD"]
[331553687,1720495845799,-151.070912,0.00030248,80]
[331553688,1720495845809,-157.070912,0.00030348,79]
[331553689,1720495845819,-2359.98316919,0.00030403,15]
[331553690,1720495845828,-151.070912,0.00030448,73]
[331553691,1720495845838,-1000.0,0.000305,120]
[331553692,1720495845849,-800.0,0.00030506,10]
[331553693,1720495845859,-500.0,0.00030506,10]
[331553694,1720495845869,-157.070912,0.00030748,74]
[331553695,1720495845878,-1900.0,0.0003078,10]
[331553696,1720495845888,-478.02,0.00030989,2]
[331553697,1720495845898,-150.00398756,0.00031,30]
[331553698,1720495845909,-1000.0,0.00031,120]
[331553699,1720495845919,-1063.89893885,0.00031,4]
[331553700,1720495845929,-800.0,0.00031054,10]
[331553701,1720495845939,-600.0,0.00031054,10]
[331553704,1720495845948,-151.070911,0.00031148,85]
[331553706,1720495845958,-151.070912,0.00031248,80]
[331553708,1720495845967,-157.070912,0.00031348,92]
[331553709,1720495845977,-151.070911,0.00031448,83]
[331553711,1720495845986,-1000.0,0.000315,120]
[331553713,1720495845996,-326.21886683,0.00031558,2]
[331553714,1720495846005,-800.0,0.00031602,10]
[331553715,1720495846015,-500.0,0.00031602,10]
[331553716,1720495846024,-157.070912,0.00031748,94]
[331553717,1720495846034,-1900.0,0.00031876,10]
[331553718,1720495846043,-214.5,0.00031905,5]
[331553719,1720495846053,-400.61502791,0.0003197,2]
[331553720,1720495846063,-1530.0,0.00032,120]
[331553721,1720495846073,-1000.0,0.00032,120]
[331553722,1720495846082,-983.0,0.00032,16]
[331553723,1720495846092,-2000.0,0.00032,30]
[331553724,1720495846101,-151.070911,0.00032148,86]
[331553725,1720495846111,-800.0,0.0003215,10]
[331553726,1720495846120,-600.0,0.0003215,10]
[331553727,1720495846130,-152.0,0.0003219,3]
[331553728,1720495846140,-157.070912,0.00032348,93]
[331553729,1720495846150,-151.070911,0.00032448,84]
[331553730,1720495846159,-500.0,0.000325,120]
[331553732,1720495846170,-1300.0,0.000326,11]
[331553734,1720495846181,-800.0,0.00032698,10]
[331553735,1720495846191,-501.74363839,0.00032698,10]
[331553738,1720495846201,-200.0,0.000327,11]
[331553741,1720495846211,-419.31,0.00032716,2]
[331553743,1720495846220,-854.69,0.00032716,2]
[331553746,1720495846230,-157.070912,0.00032748,95]
[331553749,1720495846240,-200.0,0.000328,11]
[331553751,1720495846250,-545.3382,0.00032899,3]
[331553753,1720495846260,-1000.0,0.00032899,2]
[331553755,1720495846270,-158.68956803,0.000329,4]
[331553757,1720495846280,-200.0,0.000329,12]
[331553759,1720495846289,-922.92340102,0.000329,2]
[331553760,1720495846298,-1963.0551288,0.000329,2]
[331553761,1720495846307,-1900.0,0.00032972,10]
[331553762,1720495846317,-174.85,0.0003298,30]
[331553763,1720495846327,-179.32,0.0003299,2]
[331553764,1720495846337,-179.32,0.0003299,2]
[331553765,1720495846348,-150.0,0.00032999,30]
[331553766,1720495846358,-150.0,0.00032999,30]
[331553767,1720495846368,-150.0,0.00032999,30]
[331553768,1720495846379,-150.0,0.00032999,30]
[331553769,1720495846388,-150.0,0.00032999,30]
[331553770,1720495846398,-150.0,0.00032999,30]
[331553771,1720495846407,-150.0,0.00032999,30]
[331553772,1720495846417,-150.0,0.00032999,30]
[331553773,1720495846432,-155.02934621,0.00032999,30]
[331553774,1720495846440,-150.0,0.00032999,30]
[331553775,1720495846450,-300.6675776,0.00033,15]
[331553776,1720495846459,-586.72074711,0.00033,20]
[331553777,1720495846468,-293.36037356,0.00033,25]
[331553778,1720495846478,-151.0,0.00033,2]
[331553779,1720495846488,-8070.46892479,0.00033,3]
[331553780,1720495846497,-888031.71386806,0.00033,15]
[331553781,1720495846507,-4161363.03262389,0.00033,10]
[331553782,1720495846522,-44888.27594996,0.00033,10]
[331553783,1720495846534,-212126.01187512,0.00033,10]
[331553784,1720495846546,-2435.22591543,0.00033,10]
[331553785,1720495846557,-3054.19398321,0.00033,10]
[331553786,1720495846569,-379.9422459,0.00033,10]
[331553787,1720495846580,-15980.7405625,0.00033,10]
[331553788,1720495846592,-11466.6,0.00033,10]
[331553789,1720495846800,-182.834,0.00016497,2]
[331553790,1720495846810,-682.166,0.00021995,2]
[331553791,1720495846822,-388.834,0.00021995,2]
[331553792,1720495846831,-1071.0,0.00024995,2]
[331553793,1720495846840,-248.18981709,0.00027995,2]
[331553794,1720495846851,-659.44059965,0.00027995,2]
[331553795,1720495846863,-163.36958326,0.00027995,2]
[331553796,1720495846871,-478.49,0.00030995,2]
[331553797,1720495846881,-3898.14041674,0.00033,10]
[331553798,1720495847811,-784.72147107,0.000156,3]
[331553799,1720495847831,-10702.27852893,0.000156,3]
[331553800,1720495847842,-5177.18312112,0.000162,5]
[331553822,1720496155400,934.53782506,0.00011199,2]
[331553831,1720496279771,228.78726917,0.00011199,2]
[331553832,1720496286850,401.49576924,0.00011199,2]
[331553838,1720496355981,155.0,0.00011199,2]
[331553839,1720496407091,-529.13407162,0.00013472,2]
[331553840,1720496407139,-155.0,0.00013574,2]
[331553841,1720496407180,-5204.24120352,0.0001358,2]
[331553842,1720496407222,-3053.59798427,0.0001358,2]
[331553843,1720496407261,-532.7598,0.000138,2]
[331553844,1720496407320,-707.99495082,0.000138,2]
[331553845,1720496407374,-23367.57429606,0.0001388,2]
[331553846,1720496407408,-529.13407162,0.000139,2]
[331553847,1720496407427,-155.0,0.000139,2]
[331553848,1720496407446,-5204.24120352,0.000139,2]
[331553849,1720496407465,-3053.59798427,0.000139,2]
[331553850,1720496407481,-532.7598,0.000139,2]
[331553851,1720496407498,-707.99495082,0.000139,2]
[331553852,1720496407515,-23367.57429606,0.000139,2]
[331553853,1720496407533,-267899.39538742,0.000139,2]
[331553854,1720496408649,-335000.0,0.000139,2]
[331553855,1720496411160,-707.99495075,0.00013811,2]
[331553856,1720496412467,-707.99495075,0.000139,2]
[331553857,1720496412888,-333584.0100985,0.000139,2]
[331553858,1720496413764,-335000.0,0.000139,2]
[331553859,1720496419904,-963.07165517,0.000138,2]
[331553860,1720496419938,-707.99495075,0.00013822,2]
[331553861,1720496419958,-963.07165517,0.000139,2]
[331553862,1720496419970,-707.99495075,0.000139,2]
[331553863,1720496419981,-331657.86678816,0.000139,2]
[331553916,1720497033100,-300.0,0.00011935,2]
[331553917,1720497033109,-61.36554768,0.00011936,2]
[331553918,1720497033121,-12462.28126328,0.00011936,2]
[331553919,1720497033131,-299.52,0.00012036,2]
[331553920,1720497033140,-150.0,0.00012501,2]
[331553921,1720497033149,-150.0,0.00012557,2]
[331553922,1720497033158,-150.0,0.00012612,2]
[331553923,1720497033167,-642.12,0.00012621,2]
[331553924,1720497033176,-150.0,0.00012668,2]
[331553925,1720497033185,-150.0,0.00012724,2]
[331553926,1720497033194,-150.0,0.00012779,2]
[331553927,1720497033203,-150.0,0.00012835,2]
[331553928,1720497033212,-150.0,0.0001289,2]
[331553929,1720497033221,-150.0,0.00012946,2]
[331553930,1720497033230,-150.0,0.00013001,2]
[331553931,1720497033239,-150.0,0.00013057,2]
[331553932,1720497033247,-150.0,0.00013113,2]
[331553933,1720497033256,-250.0,0.00013141,2]
[331553934,1720497033265,-150.0,0.00013168,2]
[331553935,1720497033274,-150.0,0.00013224,2]
[331553936,1720497033283,-150.0,0.00013279,2]
[331553937,1720497033292,-150.0,0.00013335,2]
[331553938,1720497033303,-150.0,0.0001339,2]
[331553939,1720497033312,-150.0,0.00013446,2]
[331553940,1720497033321,-150.0,0.00013501,2]
[331553941,1720497033330,-150.0,0.00013557,2]
[331553942,1720497033339,-150.0,0.00013613,2]
[331553943,1720497033348,-838.0,0.00013623,2]
[331553944,1720497033357,-150.0,0.00013668,2]
[331553945,1720497033367,-150.0,0.00013724,2]
[331553946,1720497033377,-150.0,0.00013779,2]
[331553947,1720497033386,-1339.23604508,0.000138,2]
[331553948,1720497033395,-495.59646557,0.000138,2]
[331553949,1720497033405,-7500.0,0.000138,2]
[331553950,1720497033414,-160.39965838,0.000138,2]
[331553951,1720497033424,-326.21886683,0.000138,2]
[331553952,1720497033433,-150.0,0.00013808,2]
[331553953,1720497033442,-221.84,0.00013808,3]
[331553954,1720497033452,-495.59646552,0.00013811,2]
[331553955,1720497033461,-160.39965838,0.00013814,2]
[331553956,1720497033470,-495.59646552,0.00013822,2]
[331553957,1720497033481,-1175.35,0.00013829,2]
[331553958,1720497033490,-160.39965838,0.00013829,2]
[331553959,1720497033499,-495.59646552,0.00013833,2]
[331553960,1720497033508,-150.0,0.00013835,2]
[331553961,1720497033521,-160.39965838,0.00013843,2]
[331553962,1720497033530,-495.59646552,0.00013844,2]
[331553963,1720497033540,-495.59646552,0.00013856,2]
[331553964,1720497033549,-160.39965838,0.00013857,2]
[331553965,1720497033559,-495.59646552,0.00013867,2]
[331553966,1720497033568,-160.39965838,0.00013871,2]
[331553967,1720497033578,-495.59646552,0.00013878,2]
[331553968,1720497033588,-160.39965838,0.00013886,2]
[331553969,1720497033598,-495.59646552,0.00013889,2]
[331553970,1720497033607,-565.63,0.0001389,3]
[331553971,1720497033616,-282.82,0.0001389,3]
[331553972,1720497033626,-848.46,0.0001389,3]
[331553973,1720497033635,-164.91172843,0.0001389,2]
[331553974,1720497033649,-164.91172843,0.0001389,2]
[331553975,1720497033659,-152.83685393,0.0001389,2]
[331553976,1720497033668,-1000.0,0.00013899,2]
[331553977,1720497033678,-156.54806058,0.00013899,2]
[331553978,1720497033688,-308.77690737,0.00013899,2]
[331553979,1720497033698,-585.32990677,0.00013899,2]
[331553980,1720497033707,-500.0,0.00013899,2]
[331553981,1720497033717,-225.69771366,0.00013899,2]
[331553982,1720497033727,-500.0,0.00013899,2]
[331553983,1720497033737,-500.0,0.00013899,2]
[331553984,1720497033747,-500.0,0.00013899,2]
[331553985,1720497033762,-500.0,0.00013899,2]
[331553986,1720497033771,-459.84575995,0.00013899,2]
[331553987,1720497033781,-500.0,0.00013899,2]
[331553988,1720497033790,-500.0,0.00013899,2]
[331553989,1720497033799,-500.0,0.00013899,2]
[331553990,1720497033809,-438.64822154,0.00013899,2]
[331553991,1720497033819,-479.07690391,0.00013899,2]
[331553992,1720497033828,-500.0,0.00013899,2]
[331553993,1720497033838,-500.0,0.00013899,2]
[331553994,1720497033847,-500.0,0.00013899,2]
[331553995,1720497033857,-500.0,0.00013899,2]
[331553996,1720497033866,-500.0,0.00013899,2]
[331553997,1720497033876,-500.0,0.00013899,2]
[331553998,1720497033889,-500.0,0.00013899,2]
[331553999,1720497033898,-500.0,0.00013899,2]
[331554000,1720497033908,-500.0,0.00013899,2]
[331554001,1720497033918,-365.76978246,0.00013899,2]
[331554002,1720497033928,-3243.05362558,0.000139,2]
[331554003,1720497033942,-483.39404204,0.000139,2]
[331554004,1720497033955,-2094.2,0.000139,2]
[331554005,1720497033967,-939.2,0.000139,2]
[331554006,1720497033979,-11038.91143297,0.000139,2]
[331554007,1720497033991,-17688.71323719,0.000139,2]
[331554008,1720497034002,-4412.68478385,0.000139,2]
[331554009,1720497034013,-1956.37593354,0.000139,2]
[331554010,1720497034024,-567.9195657,0.000139,2]
[331554011,1720497034035,-565.82,0.000139,2]
[331554012,1720497034051,-6393.22799159,0.000139,2]
[331554013,1720497034062,-4878.68678925,0.000139,2]
[331554014,1720497034073,-5687.19154647,0.000139,2]
[331554015,1720497034086,-488.57461296,0.000139,2]
[331554016,1720497034097,-15739.95000001,0.000139,2]
[331554017,1720497034108,-5631.02505531,0.000139,2]
[331554018,1720497034121,-482242.44742263,0.000139,2]
[331554019,1720497034138,-455.94522447,0.000139,2]
[331554020,1720497034150,-1722.63024292,0.000139,2]
[331554021,1720497034162,-5439.96,0.000139,2]
[331554022,1720497034174,-300.3,0.000139,2]
[331554023,1720497034186,-498.17880062,0.000139,2]
[331554024,1720497034197,-2815.3,0.000139,2]
[331554025,1720497034209,-4327.95496066,0.000139,2]
[331554089,1720497038699,-250.0,0.00013699,2]
[331554091,1720497038709,-704.13797934,0.000139,2]
[331554094,1720497038720,-22256.41329664,0.000139,2]
[331554096,1720497038732,-1390680.23845476,0.000139,2]
[331554098,1720497038746,-540.33523103,0.000139,2]
[331554100,1720497038757,-2752.47299442,0.000139,2]
[331554102,1720497038768,-290.95999964,0.000139,2]
[331554111,1720497038841,-842.6876983,0.000138,2]
[331554113,1720497038851,-1135.38785467,0.000139,2]
[331554115,1720497038862,-987.00002,0.000139,2]
[331554117,1720497038874,-694136.01201369,0.000139,2]
[331554120,1720497038886,-1315.94695395,0.000139,2]
[331554122,1720497038898,-2128.76516817,0.000139,2]
[331554124,1720497038909,-327.25503336,0.000139,2]
[331554126,1720497038921,-502.07062434,0.000139,2]
[331554129,1720497038936,-391.98439037,0.000139,2]
[331554142,1720497039053,-30050.0000001,0.000139,2]
[331554144,1720497039065,-4232.065367,0.000139,2]
[331554146,1720497039077,-5600.0,0.000139,2]
[331554164,1720497039316,-2821.24222915,0.000139,2]
[331554233,1720497039965,-560.74648956,0.000139,2]
[331554235,1720497039978,-521.36406985,0.000139,2]
[331554248,1720497040096,-910.0,0.000139,2]
[331554250,1720497040107,-13256.87732019,0.000139,2]
[331554252,1720497040119,-13857.20132762,0.000139,2]
[331554254,1720497040132,-9613.92971346,0.000139,2]
[331554257,1720497040144,-1328530.25328159,0.000139,2]
[331554259,1720497040157,-561.12732213,0.000139,2]
[331554261,1720497040168,-8407.25204638,0.000139,2]
[331554267,1720497040218,-4289.1435,0.000139,2]
[331554270,1720497040230,-1106.21680852,0.000139,2]
[331554272,1720497040245,-609.19027951,0.000139,2]
[331554450,1720497042213,-1684.53,0.000139,2]
[331554452,1720497042226,-560.58454009,0.000139,2]
[331554455,1720497042303,-514.90811892,0.000139,2]
[331554538,1720497044175,-725.31091897,0.00013814,2]
[331554539,1720497044188,-117.3767793,0.00013814,2]
[331554540,1720497044197,-1704.94261805,0.000139,2]
[331554541,1720497044210,-700.0,0.000139,2]
[331554542,1720497044222,-5253.65736738,0.000139,2]
[331554543,1720497044235,-4657.99160591,0.000139,2]
[331554544,1720497044247,-53794.51457541,0.000139,2]
[331554545,1720497044257,-495.59646552,0.000139,2]
[331554546,1720497044266,-160.39965838,0.000139,2]
[331554547,1720497044275,-190648.38854526,0.00014,2]
[331554548,1720497044287,-57455.15784142,0.00014,2]
[331554549,1720497044298,-1024.27229368,0.00014,2]
[331554550,1720497044315,-1081.77587847,0.00014,2]
[331554551,1720497044327,-364.00000001,0.00014,2]
[331554552,1720497045160,-516.3359441,0.00014,2]
[331554553,1720497045178,-302.23,0.00014,2]
[331554554,1720497045189,-300.1,0.00014,2]
[331554555,1720497045200,-301.132,0.00014,2]
[331554556,1720497045212,-274.264,0.00014,2]
[331554557,1720497045223,-309.865,0.00014,2]
[331554558,1720497045234,-20846.16339031,0.00014,2]
[331554559,1720497045246,-279.6,0.00014,2]
[331554560,1720497045257,-5960.15353982,0.00014,2]
[331554561,1720497045269,-536.28001313,0.00014,2]
[331554562,1720497045281,-30000.0,0.00014,2]
[331554563,1720497045390,-197295.0318789,0.00014,2]
[331554564,1720497045402,-2835.0,0.00014,2]
[331554565,1720497045424,-435.66754076,0.00014,2]
[331554652,1720497046907,-270.462826,0.00014,2]
[331554655,1720497046918,-819.48864063,0.00014,2]
[331554661,1720497046971,-2160.074,0.00014,2]
[331554665,1720497047004,-3322.05835592,0.00014,2]
[331554668,1720497047016,-1839.23938075,0.00014,2]
[331554688,1720497722779,10524.00948803,0.00011199,2]
[331554692,1720497785045,267.64839038,0.00011199,2]
[331554693,1720497785482,448.62861751,0.00011199,2]
[331554694,1720497794786,347.5,0.00010713,2]
[331554697,1720497832629,4485.53599738,0.00011199,2]
[331554712,1720498053492,3130.93857126,0.00011199,2]
[331554715,1720498059540,2045.15802812,0.00011199,2]
[331554722,1720498124427,258.38550146,0.00011199,2]
[331554729,1720498149707,2836.8224236,0.00011199,2]
[331554746,1720498232166,-545.12752167,0.00012302,2]
[331554748,1720498232804,-446.38417833,0.00012302,2]
[331554749,1720498232815,-106.32798167,0.00012302,2]
[331554750,1720498232829,-224.0052632,0.00012302,2]
[331554752,1720498232839,-253.84789719,0.00012314,2]
[331554754,1720498232848,-200.08643304,0.00012314,2]
[331554756,1720498232858,-176.92112717,0.00012543,2]
[331554758,1720498232869,-23.07887283,0.00012543,2]
[331554761,1720498232879,-340.21,0.00012573,2]
[331554762,1720498232888,-196.74437875,0.00012584,2]
[331554764,1720498232897,-250.0,0.00012587,2]
[331554765,1720498232906,-3206.56243249,0.00012589,2]
[331554767,1720498232917,-8108.30062772,0.00012589,2]
[331554768,1720498232928,-543.83019264,0.00012589,2]
[331554770,1720498232939,-7499.01025656,0.00012589,2]
[331554771,1720498232951,-4542.29649059,0.00012589,2]
[331554772,1720498232961,-150.0,0.000126,2]
[331554773,1720498232970,-500.0,0.00012602,2]
[331554774,1720498232980,-509.57,0.0001262,2]
[331554775,1720498232988,-509.57,0.00012655,2]
[331554776,1720498232998,-250.0,0.00012684,2]
[331554777,1720498233007,-403.8,0.00012684,2]
[331554778,1720498233018,-509.57,0.00012689,2]
[331554779,1720498233028,-509.57,0.00012724,2]
[331554780,1720498233038,-509.57,0.00012759,2]
[331554781,1720498233047,-509.57,0.00012793,2]
[331554782,1720498233055,-509.57,0.00012828,2]
[331554783,1720498233064,-509.57,0.00012862,2]
[331554784,1720498233073,-509.57,0.00012897,2]
[331554785,1720498233082,-509.57,0.00012932,2]
[331554786,1720498233091,-311.60526739,0.00012966,2]
[331554804,1720498238240,-197.96473261,0.00012966,2]
[331554806,1720498238250,-347.5,0.00012977,2]
[331554808,1720498238260,-509.57,0.00013001,2]
[331554809,1720498238270,-154.74908312,0.00013035,2]
[331554810,1720498238283,-354.82091688,0.00013035,2]
[331554811,1720498238292,-490.75390909,0.0001307,2]
[331554812,1720498238305,-18.81609091,0.0001307,2]
[331554813,1720498238315,-509.57,0.00013105,2]
[331554814,1720498238325,-298.99843162,0.00013128,2]
[331554815,1720498238334,-121.51762826,0.00013128,2]
[331554816,1720498238347,-795.2682055,0.00013128,2]
[331554817,1720498238358,-370.69929421,0.00013128,2]
[331554818,1720498238368,-380.67892131,0.00013128,2]
[331554819,1720498238378,-256.00475886,0.00013128,2]
[331554820,1720498238423,-144.44004798,0.00013128,2]
[331554821,1720498238433,-509.57,0.00013139,2]
[331554822,1720498238444,-509.57,0.00013174,2]
[331554823,1720498238455,-168.37246647,0.00013198,2]
[331554824,1720498238468,-11.02753353,0.00013198,2]
[331554825,1720498238478,-421.74994933,0.00013208,2]
[331554826,1720498238494,-87.82005067,0.00013208,2]
[331554827,1720498238505,-509.57,0.00013243,2]
[331554828,1720498238515,-509.57,0.00013278,2]
[331554829,1720498238526,-150.99,0.00013301,2]
[331554830,1720498238536,-234.48,0.00013351,2]
[331554831,1720498238546,-499.99,0.00013388,2]
[331554832,1720498238555,-168.01,0.00013388,2]
[331554833,1720498238565,-709.75,0.00013388,2]
[331554834,1720498238575,-170.78,0.00013447,2]
[331554835,1720498238584,-245.28089165,0.00013472,2]
[331554836,1720498238593,-162.89787553,0.00013516,2]
[331554837,1720498238603,-446.30254831,0.00013516,2]
[331554838,1720498238613,-6710.19062126,0.00013574,2]
[331554840,1720498238623,-2385.48071416,0.00013574,2]
[331554842,1720498238632,-2751.0,0.00013699,2]
[331554844,1720498238642,-200.0,0.00013699,2]
[331554846,1720498238651,-153.63,0.00013699,2]
[331554848,1720498238662,-1605.38,0.00013699,2]
[331554850,1720498238672,-250.0,0.00013699,2]
[331554852,1720498238683,-912.2249,0.000137,2]
[331554854,1720498238693,-884.5364,0.000137,2]
[331554856,1720498238703,-582.0,0.00013721,2]
[331554858,1720498238713,-417.93936495,0.00013731,2]
[331554860,1720498238723,-12775.20479459,0.00013736,2]
[331554862,1720498238733,-1077.8286672,0.00013736,2]
[331554864,1720498238743,-282.81,0.0001379,3]
[331554866,1720498238752,-848.47,0.0001379,3]
[331554868,1720498238762,-505.67353575,0.00013799,2]
[331554870,1720498238772,-745.0577,0.000138,2]
[331554872,1720498238782,-9571.78004507,0.000138,2]
[331554874,1720498238794,-3971.02265493,0.000138,2]
[331554876,1720498238804,-6019.97734507,0.000138,2]
[331554881,1720498238840,-3074.8,0.000138,2]
[331554883,1720498238851,-816.37667943,0.000138,2]
[331554885,1720498238863,-1004.79958691,0.000138,2]
[331554887,1720498238875,-284.51111494,0.000138,2]
[331554889,1720498238887,-7102.99562553,0.000138,2]
[331554892,1720498238899,-110342.17934812,0.000138,2]
[331554894,1720498238909,-789.83801182,0.00013849,2]
[331554896,1720498238919,-522.98396224,0.00013849,2]
[331554898,1720498238929,-35267.33153954,0.0001386,2]
[331554900,1720498238939,-500.0,0.0001386,2]
[331554902,1720498238949,-170.30484408,0.00013889,2]
[331554904,1720498238959,-474.86366289,0.00013889,2]
[331554906,1720498238969,-529.13407162,0.00013899,2]
[331554908,1720498238979,-252.6380111,0.00013899,2]
[331554910,1720498238989,-155.24349498,0.00013899,2]
[331554912,1720498238999,-649.33683349,0.00013899,2]
[331554914,1720498239009,-458.56830439,0.00013899,2]
[331554916,1720498239020,-583.17241438,0.00013899,2]
[331554918,1720498239031,-155.5920659,0.00013899,2]
[331554920,1720498239041,-1610.63649224,0.000139,2]
[331554922,1720498239052,-1007.0,0.000139,2]
[331554924,1720498239063,-3739.7418,0.000139,2]
[331554926,1720498239073,-486.20924216,0.000139,2]
[331554928,1720498239083,-157.44470744,0.000139,2]
[331554930,1720498239093,-418.51126409,0.000139,2]
[331554932,1720498239103,-7500.0,0.000139,2]
[331554934,1720498239113,-419.0368082,0.000139,2]
[331554936,1720498239123,-450.79196674,0.000139,2]
[331554938,1720498239134,-12420.94814067,0.000139,2]
[331554940,1720498239144,-5056.12618962,0.000139,2]
[331554941,1720498239154,-326.21886683,0.000139,2]
[331554942,1720498239164,-546.12719248,0.000139,2]
[331554943,1720498239174,-1000.0,0.00013907,2]
[331554944,1720498239184,-1004.0,0.0001397,2]
[331554945,1720498239194,-1000.0,0.0001398,2]
[331554946,1720498239204,-1000.0,0.0001398,2]
[331554947,1720498239214,-197.54744095,0.00013989,2]
[331554949,1720498239225,-158.37002654,0.00013989,2]
[331554951,1720498239235,-188.75817517,0.00013989,2]
[331554953,1720498239245,-431.95876166,0.00013989,2]
[331554955,1720498239255,-500.0,0.00013999,2]
[331554958,1720498239265,-488.2319742,0.00013999,2]
[331554959,1720498239275,-216.14383516,0.00013999,2]
[331554961,1720498239286,-500.0,0.00013999,2]
[331554964,1720498239296,-346.6238113,0.00013999,2]
[331554966,1720498239307,-500.0,0.00013999,2]
[331554968,1720498239317,-520.92428313,0.00013999,2]
[331554970,1720498239327,-369.13157018,0.00013999,2]
[331554972,1720498239337,-159.83410912,0.00013999,2]
[331554975,1720498239357,-188.04824218,0.00013999,2]
[331554977,1720498239369,-191.6916045,0.00013999,2]
[331554979,1720498239380,-129870.20015715,0.00014,2]
[331554983,1720498239414,-1500.0,0.00014,2]
[331554985,1720498239427,-2693.31503572,0.00014,2]
[331554987,1720498239439,-257.82237684,0.00014,2]
[331554990,1720498239453,-3486.1,0.00014,2]
[331555003,1720498239580,-7488.22927457,0.00014,2]
[331555241,1720498241912,-586.61842888,0.00014,2]
[331555243,1720498241924,-880.93382405,0.00014,2]
[331555248,1720498241962,-654.37201286,0.00013889,2]
[331555250,1720498241971,-7181775.47573527,0.00014,2]
[331555252,1720498241982,-21513.17267246,0.00014,2]
[331555398,1720498243313,-529.13407162,0.00013889,2]
[331555400,1720498243322,-0.72600618,0.00014,2]
[331555402,1720498243334,-1064.00008,0.00014,2]
[331555405,1720498243345,-842.74322516,0.00014,2]
[331555413,1720498243416,-341.10126032,0.00014,2]
[331555509,1720498244409,-1605.35180376,0.00014,2]
[331555512,1720498244428,-1220.0,0.00014,2]
[331555514,1720498244439,-1165.39763693,0.00014,2]
[331555703,1720498246488,-197.73067875,0.00013999,2]
[331555706,1720498246499,-14148.40113716,0.00014,2]
[331555709,1720498246512,-584.82021014,0.00014,2]
[331555715,1720498246546,-2833.19790217,0.00014,2]
[331555734,1720498246719,-40451.97495834,0.00014,2]
[331555741,1720498246778,-3823.05,0.00014,2]
[331555749,1720498246838,-1349.08580306,0.00014,2]
[331556586,1720498626079,266.85324269,0.00025,60]
[331556587,1720498658695,266.56416366,0.00025,60]
[331556588,1720498766747,150.0,0.00027,120]
[331556589,1720498831293,-369.41,0.00011992,2]
[331556591,1720498933089,350.93,0.00011291,2]
[331556592,1720499038562,9279.66,0.00011291,2]
[331556593,1720499044066,286.9554055,0.00011199,2]
[331556594,1720499053660,156.16015331,0.00011199,2]
[331556595,1720499087312,297.70719904,0.00011199,2]
[331556596,1720499105496,281.86546868,0.00011199,2]
[331556597,1720499110143,20318.66280891,0.00011199,2]
[331556598,1720499111341,155.50356911,0.00011199,2]
[331556599,1720499116649,194.37924999,0.00011199,2]
[331556600,1720499117823,299.39319019,0.00011199,2]
[331556601,1720499119144,18795.719944,0.00011199,2]
[331556602,1720499162874,1352.22739021,0.00011199,2]
[331556603,1720499167152,157.27225688,0.00011199,2]
[331556605,1720499198923,15442.912813,0.00011199,2]
[331556606,1720499209705,155.1764491,0.00011199,2]
[331556607,1720499219145,1073.96646237,0.00011199,2]
[331556608,1720499230144,1073.96646237,0.00011199,2]
[331556609,1720499254546,3033.54755759,0.00011199,2]
[331556610,1720499275346,227.83438245,0.00011199,2]
[331556611,1720499282572,496314.20631698,0.00011199,2]
[331556612,1720499285499,155.0,0.00011199,2]
[331556613,1720499291855,227.83438245,0.00011199,2]
[331556614,1720499303387,5623.88540324,0.00011199,2]
[331556615,1720499315072,3394.25146719,0.00011199,2]
[331556616,1720499357686,565.62,0.00010959,2]
[331556617,1720499360372,15466.46823498,0.00011199,2]
[331556618,1720499368587,116803.87483664,0.00011199,2]
[331556621,1720499384873,10525.28715581,0.00011199,2]